bitfinex/quotes_BTCUSD_20251102
["timestamp","ask_amount","ask_price","bid_price","bid_amount"]
[1762068241599,0.35127,110640.0,110630.0,0.24342114]
[1762068241800,0.34,110640.0,110630.0,0.27059755]
[1762068243266,0.54,110640.0,110630.0,0.27059755]
[1762068244691,0.34,110640.0,110630.0,0.27059755]
[1762068245338,0.009,110650.0,110630.0,0.26159755]
[1762068245538,0.009,110650.0,110640.0,0.25142308]
[1762068245737,0.349,110650.0,110640.0,0.2337853]
[1762068245930,0.349,110650.0,110640.0,0.25995703]
[1762068247173,0.349,110650.0,110640.0,0.26495703]
[1762068247378,0.34,110650.0,110640.0,0.26495703]
[1762068248687,0.34,110650.0,110640.0,0.26795703]
[1762068252086,0.22415592,110670.0,110660.0,0.18073377]
[1762068252331,3.20997842,110670.0,110660.0,0.20550377]
[1762068252552,0.22528842,110670.0,110660.0,0.20550377]
[1762068252769,0.56528842,110670.0,110660.0,0.23267139]
[1762068253217,0.56528842,110670.0,110660.0,0.25764139]
[1762068253425,0.56528842,110670.0,110660.0,0.26164139]
[1762068253632,0.62528842,110670.0,110660.0,0.26164139]
[1762068254051,0.62528842,110670.0,110660.0,0.26664139]
[1762068257395,0.60004842,110670.0,110660.0,0.26664139]
[1762068257592,0.60004842,110670.0,110660.0,0.31083354]
[1762068257802,0.60004842,110670.0,110660.0,0.26664139]
[1762068258726,0.40004842,110670.0,110660.0,0.26664139]
[1762068259832,0.39999823,110670.0,110660.0,0.26664139]
[1762068264036,0.39999823,110670.0,110660.0,0.26122139]
[1762068277490,0.06,110670.0,110660.0,0.35302729]
[1762068277875,0.4,110670.0,110660.0,0.35302729]
[1762068285859,0.06,110670.0,110660.0,0.35302729]
[1762068287112,0.06,110670.0,110660.0,0.34902729]
[1762068287514,0.06,110670.0,110660.0,0.34802729]
[1762068287929,0.06,110670.0,110660.0,0.35702729]
[1762068291650,0.05972891,110670.0,110660.0,0.35702729]
[1762068293295,0.25553635,110670.0,110660.0,0.08990762]
[1762068293505,0.63872944,110670.0,110660.0,0.04958762]
[1762068293705,0.68308184,110670.0,110660.0,0.04016762]
[1762068293921,0.68308184,110670.0,110660.0,0.04761232]
[1762068294126,0.68308184,110670.0,110660.0,0.02716762]
[1762068294127,0.77388774,110670.0,110660.0,0.02716762]
[1762068294465,0.77388774,110670.0,110660.0,0.03316762]
[1762068294670,0.77388774,110670.0,110660.0,0.03416762]
[1762068294809,0.77388774,110670.0,110660.0,0.02816762]
[1762068295018,0.77388774,110670.0,110660.0,0.001]
[1762068295226,0.77388774,110670.0,110660.0,0.003]
[1762068295791,0.54,110660.0,110650.0,0.23598355]
[1762068296006,0.77190377,110660.0,110650.0,0.00021941]
[1762068296249,1.00516686,110660.0,110650.0,0.00021941]
[1762068296464,0.82470301,110660.0,110650.0,0.00021941]
[1762068296671,0.80516686,110660.0,110650.0,0.00021941]
[1762068296878,1.00516686,110660.0,110650.0,0.00021941]
[1762068297343,1.00616686,110660.0,110650.0,0.00021941]
[1762068297560,4.12451709,110660.0,110650.0,0.00221941]
[1762068297770,4.03469808,110660.0,110650.0,0.00221941]
[1762068298614,4.03469808,110660.0,110650.0,0.00021941]
[1762068299064,4.03669808,110660.0,110650.0,0.00021941]
[1762068301819,4.03668105,110660.0,110650.0,0.00021941]
[1762068302244,4.07286333,110660.0,110650.0,0.00021941]
[1762068302436,4.07386333,110660.0,110650.0,0.00021941]
[1762068303206,4.07286333,110660.0,110650.0,0.00021941]
[1762068303418,4.07086333,110660.0,110650.0,0.00021941]
[1762068303600,4.08086333,110660.0,110650.0,0.00021941]
[1762068303777,4.08686333,110660.0,110650.0,0.00021941]
[1762068304031,4.07786333,110660.0,110650.0,0.00021941]
[1762068309027,4.08686333,110660.0,110650.0,0.00021941]
[1762068309619,4.06734914,110660.0,110650.0,0.00021941]
[1762068309821,4.08683563,110660.0,110650.0,0.00021941]
[1762068310677,4.10101555,110660.0,110650.0,0.00021941]
[1762068311133,4.08683563,110660.0,110650.0,0.00021941]
[1762068311961,4.15814645,110660.0,110650.0,0.00021941]
[1762068312654,4.21297139,110660.0,110650.0,0.00021941]
[1762068312922,4.16964212,110660.0,110650.0,0.00021941]
[1762068313191,4.13608683,110660.0,110650.0,0.00021941]
[1762068313407,4.13008683,110660.0,110650.0,0.00021941]
[1762068313617,4.12008683,110660.0,110650.0,0.00021941]
[1762068313830,4.14526618,110660.0,110650.0,0.00021941]
[1762068314071,4.14626618,110660.0,110650.0,0.00021941]
[1762068314515,4.14526618,110660.0,110650.0,0.00021941]
[1762068314780,4.14626618,110660.0,110650.0,0.00021941]
[1762068314987,4.14526618,110660.0,110650.0,0.00021941]
[1762068315449,4.14626618,110660.0,110650.0,0.00021941]
[1762068318460,4.14526618,110660.0,110650.0,0.00021941]
[1762068319297,4.17782147,110660.0,110650.0,0.00021941]
[1762068319497,4.14526618,110660.0,110650.0,0.00021941]
[1762068320355,4.07582081,110660.0,110650.0,0.00021941]
[1762068320703,4.09490455,110660.0,110650.0,0.00021941]
[1762068321388,4.08390455,110660.0,110650.0,0.00021941]
[1762068321584,4.08790455,110660.0,110650.0,0.00021941]
[1762068321790,4.08990455,110660.0,110650.0,0.00021941]
[1762068322636,4.12245984,110660.0,110650.0,0.00021941]
[1762068324003,4.13663822,110660.0,110650.0,0.00021941]
[1762068324199,4.12245984,110660.0,110650.0,0.00021941]
[1762068325039,3.92245984,110660.0,110650.0,0.00021941]
[1762068325291,3.91883606,110660.0,110650.0,0.00021941]
[1762068326438,0.69402606,110660.0,110650.0,0.01525941]
[1762068326639,0.89402606,110660.0,110650.0,0.07486881]
[1762068326842,0.86147077,110660.0,110650.0,0.07486881]
[1762068327044,0.86147077,110660.0,110650.0,0.05081881]
[1762068327240,0.85747077,110660.0,110650.0,0.05081881]
[1762068327594,0.86964796,110660.0,110650.0,0.05081881]
[1762068327778,0.85647077,110660.0,110650.0,0.05081881]
[1762068328604,0.80811768,110660.0,110650.0,0.07478881]
[1762068328934,0.79684768,110660.0,110650.0,0.25553892]
[1762068329352,0.79684768,110660.0,110650.0,0.07478881]
[1762068330200,0.78784768,110660.0,110650.0,0.07478881]
[1762068330925,0.59019901,110660.0,110650.0,0.27361393]
[1762068331148,0.57093278,110660.0,110650.0,0.25553892]
[1762068331396,0.58788549,110660.0,110650.0,0.25553892]
[1762068331613,0.39019901,110660.0,110650.0,0.25553892]
[1762068332091,0.02484124,110660.0,110650.0,0.25553892]
[1762068332291,0.00535475,110660.0,110650.0,0.25853892]
[1762068332506,0.34535475,110660.0,110650.0,0.25953892]
[1762068332726,0.42408668,110670.0,110660.0,0.18073377]
[1762068332935,0.64664667,110670.0,110660.0,0.20470377]
[1762068333151,0.64664667,110670.0,110660.0,0.23320377]
[1762068333983,0.62969527,110670.0,110660.0,0.23320377]
[1762068334199,0.64764459,110670.0,110660.0,0.23320377]
[1762068334684,0.46692715,110670.0,110660.0,0.23320377]
[1762068334894,0.40719824,110670.0,110660.0,0.23320377]
[1762068335143,0.38488562,110670.0,110660.0,0.23320377]
[1762068335375,0.341,110670.0,110660.0,0.23320377]
[1762068336460,0.341,110670.0,110660.0,0.32400967]
[1762068337131,0.341,110670.0,110660.0,0.32700967]
[1762068337604,0.34,110670.0,110660.0,0.32400967]
[1762068337810,0.34,110670.0,110660.0,0.33100967]
[1762068338092,0.34,110670.0,110660.0,0.33000967]
[1762068338494,0.34,110670.0,110660.0,0.33300967]
[1762068338737,0.34,110670.0,110660.0,0.37720182]
[1762068338957,0.34,110670.0,110660.0,0.33300967]
[1762068341148,0.34,110670.0,110660.0,0.33400967]
[1762068348992,0.37326309,110670.0,110660.0,0.33400967]
[1762068354333,0.03326309,110670.0,110660.0,0.33400967]
[1762068354499,0.34,110690.0,110680.0,0.18070112]
[1762068354727,0.34,110690.0,110680.0,0.20677551]
[1762068354882,0.34,110690.0,110680.0,0.23074551]
[1762068355287,0.52068479,110690.0,110680.0,0.23074551]
[1762068357002,0.52168479,110690.0,110680.0,0.23074551]
[1762068357729,0.52068479,110690.0,110680.0,0.23074551]
[1762068357934,0.52068479,110690.0,110680.0,0.23174551]
[1762068358144,0.52068479,110690.0,110680.0,0.23474476]
[1762068358343,0.34,110690.0,110680.0,0.23474476]
[1762068360730,0.39994315,110700.0,110690.0,0.18068479]
[1762068360731,0.35018796,110700.0,110690.0,0.18068479]
[1762068360937,0.35018796,110700.0,110690.0,0.25308326]
[1762068361148,0.35018796,110700.0,110690.0,0.23501479]
[1762068361801,0.53085643,110700.0,110690.0,0.23501479]
[1762068362880,0.53085643,110700.0,110690.0,0.24101479]
[1762068363309,0.53185643,110700.0,110690.0,0.24101479]
[1762068363488,0.53085643,110700.0,110690.0,0.24101479]
[1762068363917,0.53085643,110700.0,110690.0,0.24301479]
[1762068366939,0.35018796,110700.0,110690.0,0.24301479]
[1762068367545,0.34125722,110700.0,110690.0,0.24301479]
[1762068371010,0.00125722,110700.0,110690.0,0.24301479]
[1762068377803,0.00125722,110700.0,110690.0,0.25301478]
[1762068378245,0.00125722,110700.0,110690.0,0.24301479]
[1762068378437,0.00125722,110700.0,110690.0,0.25301478]
[1762068378655,0.00125722,110700.0,110690.0,0.25101478]
[1762068379091,0.00125722,110700.0,110690.0,0.25001478]
[1762068379313,0.00125722,110700.0,110690.0,0.25801478]
[1762068380830,0.00125722,110700.0,110690.0,0.24801479]
[1762068381056,0.00125722,110700.0,110690.0,0.25801478]
[1762068381536,0.00125722,110700.0,110690.0,0.29419706]
[1762068382837,0.00125722,110700.0,110690.0,0.28419707]
[1762068384654,0.00125722,110700.0,110690.0,0.24701479]
[1762068384888,0.00125722,110700.0,110690.0,0.24801479]
[1762068385280,0.00125722,110700.0,110690.0,0.24701479]
[1762068385487,0.00125722,110700.0,110690.0,0.24801479]
[1762068395623,0.18192569,110700.0,110690.0,0.24701479]
[1762068396289,0.18192569,110700.0,110690.0,0.24201479]
[1762068396720,0.18192569,110700.0,110690.0,0.24501479]
[1762068396918,0.18192569,110700.0,110690.0,0.23701479]
[1762068397136,0.18192569,110700.0,110690.0,0.24201479]
[1762068397548,0.00125722,110700.0,110690.0,0.24201479]
[1762068397778,0.00125722,110700.0,110690.0,0.23401479]
[1762068397982,0.18192569,110700.0,110690.0,0.23601479]
[1762068398201,0.18192569,110700.0,110690.0,0.23701479]
[1762068398431,0.00125722,110700.0,110690.0,0.23701479]
[1762068399395,0.18192569,110700.0,110690.0,0.23701479]
[1762068399633,0.18192569,110700.0,110690.0,0.05633]
[1762068399862,0.52192569,110700.0,110690.0,0.05633]
[1762068400089,0.54840569,110700.0,110690.0,0.05633]
[1762068400656,0.53319569,110700.0,110690.0,0.05633]
[1762068404626,0.52192569,110700.0,110690.0,0.05633]
[1762068405610,0.58192569,110700.0,110690.0,0.05633]
[1762068409394,0.58192569,110700.0,110690.0,0.23701479]
[1762068409608,0.58192569,110700.0,110690.0,0.05633]
[1762068415958,0.60908416,110700.0,110690.0,0.05633]
[1762068420307,0.60908416,110700.0,110690.0,0.23701479]
[1762068420505,0.60908416,110700.0,110690.0,0.05633]
[1762068421450,0.62514416,110700.0,110690.0,0.03177]
[1762068421663,0.64771416,110700.0,110690.0,0.003]
[1762068421896,0.84771416,110700.0,110690.0,0.003]
[1762068422165,0.87842703,110700.0,110690.0,0.003]
[1762068422384,0.87842703,110700.0,110690.0,0.001]
[1762068422604,0.87942703,110700.0,110690.0,0.001]
[1762068423268,0.52068479,110690.0,110680.0,0.15062348]
[1762068423480,0.57864766,110690.0,110680.0,0.16595348]
[1762068423918,0.60580925,110690.0,110680.0,0.18877348]
[1762068424598,0.60580925,110690.0,110680.0,0.18977348]
[1762068425873,0.60580925,110690.0,110680.0,0.16895348]
[1762068426121,0.60580925,110690.0,110680.0,0.19177348]
[1762068427766,0.57847925,110690.0,110680.0,0.14405348]
[1762068428580,0.57847925,110690.0,110680.0,0.14205348]
[1762068429033,0.57947925,110690.0,110680.0,0.14205348]
[1762068429450,0.57947925,110690.0,110680.0,0.14105348]
[1762068429872,0.58047925,110690.0,110680.0,0.14105348]
[1762068430079,0.58047925,110690.0,110680.0,0.3217546]
[1762068430478,0.57847925,110690.0,110680.0,0.3217546]
[1762068430728,0.39779446,110690.0,110680.0,0.3217546]
[1762068430929,0.57947925,110690.0,110680.0,0.3217546]
[1762068432303,0.58047925,110690.0,110680.0,0.3217546]
[1762068432456,0.58047925,110690.0,110680.0,0.14105348]
[1762068433957,0.58047925,110690.0,110680.0,0.3217546]
[1762068435134,0.39979446,110690.0,110680.0,0.3217546]
[1762068435965,0.58047925,110690.0,110680.0,0.3217546]
[1762068436948,0.58047925,110690.0,110680.0,0.14105348]
[1762068437211,0.58047925,110690.0,110680.0,0.3217546]
[1762068439044,0.39979446,110690.0,110680.0,0.3217546]
[1762068439650,0.36916159,110690.0,110680.0,0.3217546]
[1762068440007,0.36916159,110690.0,110680.0,0.4125605]
[1762068440212,0.36816159,110690.0,110680.0,0.4125605]
[1762068440629,0.36816159,110690.0,110680.0,0.4135605]
[1762068441272,0.36716159,110690.0,110680.0,0.4135605]
[1762068441497,0.36716159,110690.0,110680.0,0.4155605]
[1762068441906,0.36716159,110690.0,110680.0,0.4135605]
[1762068442330,0.36816159,110690.0,110680.0,0.4135605]
[1762068442562,0.36816159,110690.0,110680.0,0.4125605]
[1762068442977,0.54984638,110690.0,110680.0,0.4125605]
[1762068445475,0.36916159,110690.0,110680.0,0.4125605]
[1762068447178,0.54984638,110690.0,110680.0,0.4125605]
[1762068449794,0.54984638,110690.0,110680.0,0.23185938]
[1762068450002,0.54984638,110690.0,110680.0,0.14105348]
[1762068457847,3.58047925,110690.0,110680.0,0.14105348]
[1762068458072,3.69537823,110690.0,110680.0,0.14105348]
[1762068458286,3.70955096,110690.0,110680.0,0.14105348]
[1762068458501,3.69537823,110690.0,110680.0,0.14105348]
[1762068458715,3.69437823,110690.0,110680.0,0.14105348]
[1762068459144,3.69637823,110690.0,110680.0,0.14105348]
[1762068459359,3.68883102,110690.0,110680.0,0.14105348]
[1762068459575,3.69683102,110690.0,110680.0,0.14105348]
[1762068459984,3.69283102,110690.0,110680.0,0.14105348]
[1762068460459,3.69983102,110690.0,110680.0,0.14105348]
[1762068460945,3.57839225,110690.0,110680.0,0.15814765]
[1762068461157,0.75884638,110690.0,110680.0,0.15814765]
[1762068461373,0.77301986,110690.0,110680.0,0.15814765]
[1762068461800,3.7925491,110690.0,110680.0,0.14105348]
[1762068462014,3.7885491,110690.0,110680.0,0.14105348]
[1762068462246,3.7815491,110690.0,110680.0,0.14105348]
[1762068462471,3.7825491,110690.0,110680.0,0.14105348]
[1762068462685,3.7845491,110690.0,110680.0,0.14105348]
[1762068463113,3.7815491,110690.0,110680.0,0.14105348]
[1762068463325,3.7865491,110690.0,110680.0,0.14105348]
[1762068463549,3.7895491,110690.0,110680.0,0.14105348]
[1762068464030,3.83640184,110690.0,110680.0,0.14105348]
[1762068464242,3.86703471,110690.0,110680.0,0.14105348]
[1762068465308,3.85008218,110690.0,110680.0,0.14105348]
[1762068467233,3.84908218,110690.0,110680.0,0.14105348]
[1762068467453,3.82472441,110690.0,110680.0,0.14105348]
[1762068468792,3.82572441,110690.0,110680.0,0.14105348]
[1762068469208,3.82472441,110690.0,110680.0,0.14105348]
[1762068469831,3.79409154,110690.0,110680.0,0.14105348]
[1762068470240,3.79509154,110690.0,110680.0,0.14105348]
[1762068470996,3.79409154,110690.0,110680.0,0.14105348]
[1762068471240,3.79509154,110690.0,110680.0,0.14105348]
[1762068471444,3.78091806,110690.0,110680.0,0.14105348]
[1762068472022,3.77991806,110690.0,110680.0,0.14105348]
[1762068480625,0.77537562,110690.0,110680.0,0.14105348]
[1762068480835,0.77537562,110690.0,110680.0,0.15814765]
[1762068481583,0.76737562,110690.0,110680.0,0.15814765]
[1762068481782,0.77137562,110690.0,110680.0,0.15814765]
[1762068482164,0.77137562,110690.0,110680.0,0.14105348]
[1762068482373,0.76737562,110690.0,110680.0,0.14105348]
[1762068482685,0.76837562,110690.0,110680.0,0.14105348]
[1762068485218,0.7725765,110690.0,110680.0,0.14105348]
[1762068485661,0.76837562,110690.0,110680.0,0.14105348]
[1762068485860,0.77257717,110690.0,110680.0,0.16393348]
[1762068486272,0.76837562,110690.0,110680.0,0.17555348]
[1762068486465,0.77257813,110690.0,110680.0,0.17555348]
[1762068487636,0.77257813,110690.0,110680.0,0.15267348]
[1762068487842,0.78340813,110690.0,110680.0,0.15267348]
[1762068488037,0.78340813,110690.0,110680.0,0.17555348]
[1762068490461,0.77257813,110690.0,110680.0,0.17555348]
[1762068491714,0.74541654,110690.0,110680.0,0.17555348]
[1762068497030,0.74121403,110690.0,110680.0,0.17555348]
[1762068503829,0.75204403,110690.0,110680.0,0.17555348]
[1762068504034,0.75204403,110690.0,110680.0,0.15267348]
[1762068504236,0.76731403,110690.0,110680.0,0.16862348]
[1762068505847,0.76731403,110690.0,110680.0,0.19336348]
[1762068506063,0.76731403,110690.0,110680.0,0.21685065]
[1762068506556,0.74121403,110690.0,110680.0,0.21685065]
[1762068511675,0.75698403,110690.0,110680.0,0.21685065]
[1762068511895,0.76781403,110690.0,110680.0,0.21685065]
[1762068512269,0.76781403,110690.0,110680.0,0.19211065]
[1762068513054,0.76781403,110690.0,110680.0,0.21703065]
[1762068513284,0.76781403,110690.0,110680.0,0.16862348]
[1762068513494,0.76781403,110690.0,110680.0,0.15267348]
[1762068513495,0.79043403,110690.0,110680.0,0.15267348]
[1762068514073,0.76781403,110690.0,110680.0,0.16791348]
[1762068515098,0.79043403,110690.0,110680.0,0.16791348]
[1762068515299,0.79043403,110690.0,110680.0,0.14105348]
[1762068515505,3.79464047,110690.0,110680.0,0.14105348]
[1762068516349,3.77202047,110690.0,110680.0,0.15629348]
[1762068516656,3.77202047,110690.0,110680.0,0.16846348]
[1762068516831,3.77202047,110690.0,110680.0,0.19338348]
[1762068518220,3.77202047,110690.0,110680.0,0.16846348]
[1762068518622,3.75625047,110690.0,110680.0,0.19195265]
[1762068518822,3.74542107,110690.0,110680.0,0.21687265]
[1762068522625,3.74542107,110690.0,110680.0,0.19338348]
[1762068524634,3.76119107,110690.0,110680.0,0.19338348]
[1762068524842,3.77202107,110690.0,110680.0,0.16846348]
[1762068525419,3.77202107,110690.0,110680.0,0.19338348]
[1762068528216,3.79464107,110690.0,110680.0,0.16846348]
[1762068528623,3.77202107,110690.0,110680.0,0.16846348]
[1762068529990,3.77202107,110690.0,110680.0,0.19338348]
[1762068535614,3.77202107,110690.0,110680.0,0.16846348]
[1762068536140,3.77202107,110690.0,110680.0,0.19338348]
[1762068536829,3.75625107,110690.0,110680.0,0.19338348]
[1762068538074,3.75625204,110690.0,110680.0,0.19338348]
[1762068538931,3.74542204,110690.0,110680.0,0.19338348]
[1762068542377,3.74542257,110690.0,110680.0,0.19338348]
[1762068545338,3.76088257,110690.0,110680.0,0.19338348]
[1762068545984,3.74542257,110690.0,110680.0,0.19338348]
[1762068546344,3.76088257,110690.0,110680.0,0.19338348]
[1762068546550,3.74542257,110690.0,110680.0,0.19338348]
[1762068546964,0.74542257,110690.0,110680.0,0.21687265]
[1762068547393,0.74542243,110690.0,110680.0,0.21687265]
[1762068554567,0.74542227,110690.0,110680.0,0.21687265]
[1762068566249,0.74121403,110690.0,110680.0,0.21687265]
[1762068569203,0.74121403,110690.0,110680.0,0.48837967]
[1762068569204,0.36052924,110690.0,110680.0,0.48837967]
[1762068569407,0.20121403,110690.0,110680.0,0.30767855]
[1762068569837,0.52168479,110690.0,110680.0,0.30767855]
[1762068570042,0.52068479,110690.0,110680.0,0.30767855]
[1762068570422,0.52068479,110690.0,110680.0,0.30867855]
[1762068571432,0.52068479,110690.0,110680.0,0.31067855]
[1762068577166,0.52068479,110690.0,110680.0,0.49137967]
[1762068583028,0.52068479,110690.0,110680.0,0.31067855]
[1762068583234,0.52068479,110690.0,110680.0,0.49137967]
[1762068589743,0.52068479,110690.0,110680.0,0.31067855]
[1762068593046,0.52068479,110690.0,110680.0,0.21987265]
[1762068594507,0.52068479,110690.0,110680.0,0.31067855]
[1762068595775,0.52068479,110690.0,110680.0,0.28718938]
[1762068600470,0.52068479,110690.0,110680.0,0.4678905]
[1762068602293,0.52068479,110690.0,110680.0,0.28718938]
[1762068602493,0.52068479,110690.0,110680.0,0.4678905]
[1762068603333,0.34,110690.0,110680.0,0.4678905]
[1762068604549,0.52192569,110700.0,110690.0,0.18068479]
[1762068604771,0.00125722,110700.0,110690.0,0.25024326]
[1762068605015,0.00125722,110700.0,110690.0,0.23317479]
[1762068605728,0.00125722,110700.0,110690.0,0.26033326]
[1762068605949,0.18292569,110700.0,110690.0,0.26033326]
[1762068606187,0.18292569,110700.0,110690.0,0.26533326]
[1762068606414,0.18192569,110700.0,110690.0,0.26533326]
[1762068606833,0.18192569,110700.0,110690.0,0.27433326]
[1762068607035,0.00125722,110700.0,110690.0,0.27433326]
[1762068607933,0.00125722,110700.0,110690.0,0.27408584]
[1762068608148,0.00125722,110700.0,110690.0,0.31827799]
[1762068608356,0.00125722,110700.0,110690.0,0.27408584]
[1762068609767,0.18192569,110700.0,110690.0,0.27408584]
[1762068609968,0.00125722,110700.0,110690.0,0.27408584]
[1762068611011,0.18192569,110700.0,110690.0,0.27408584]
[1762068611620,0.18192569,110700.0,110690.0,0.24692737]
[1762068612276,0.00125722,110700.0,110690.0,0.24692737]
[1762068614513,0.00125722,110700.0,110690.0,0.27408036]
[1762068663689,0.18192569,110700.0,110690.0,0.06649]
[1762068663898,0.18192569,110700.0,110690.0,0.24717479]
[1762068664101,0.19828569,110700.0,110690.0,0.06549]
[1762068664312,0.20911569,110700.0,110690.0,0.06549]
[1762068664721,0.20911569,110700.0,110690.0,0.04205]
[1762068665304,0.20911569,110700.0,110690.0,0.07300794]
[1762068665777,0.20911569,110700.0,110690.0,0.25369273]
[1762068665958,0.02844722,110700.0,110690.0,0.27619273]
[1762068666169,0.00125722,110700.0,110690.0,0.27619273]
[1762068669896,0.18192569,110700.0,110690.0,0.27619273]
[1762068670523,0.18192569,110700.0,110690.0,0.09550794]
[1762068671741,0.20908342,110700.0,110690.0,0.09550794]
[1762068673103,0.20908342,110700.0,110690.0,0.27619273]
[1762068675217,0.02841495,110700.0,110690.0,0.27619273]
[1762068677281,0.20908342,110700.0,110690.0,0.27619273]
[1762068678323,0.20908342,110700.0,110690.0,0.09550794]
[1762068678724,0.20908342,110700.0,110690.0,0.27619273]
[1762068679711,0.02841495,110700.0,110690.0,0.27619273]
[1762068685468,0.20908342,110700.0,110690.0,0.27619273]
[1762068685732,0.02841495,110700.0,110690.0,0.27619273]
[1762068686910,0.20908342,110700.0,110690.0,0.27619273]
[1762068687256,0.20908342,110700.0,110690.0,0.09550794]
[1762068687461,0.20908342,110700.0,110690.0,0.27619273]
[1762068687882,0.22519342,110700.0,110690.0,0.27619273]
[1762068689082,0.20908342,110700.0,110690.0,0.27619273]
[1762068689286,0.02841495,110700.0,110690.0,0.27619273]
[1762068698976,0.58748342,110700.0,110690.0,0.04205]
[1762068699379,0.56469342,110700.0,110690.0,0.04205]
[1762068699836,0.56469342,110700.0,110690.0,0.03305]
[1762068700039,0.56469342,110700.0,110690.0,0.06259]
[1762068700514,0.56469342,110700.0,110690.0,0.03805]
[1762068700752,0.56469342,110700.0,110690.0,0.03305]
[1762068700952,0.56469342,110700.0,110690.0,0.03605]
[1762068705175,0.56469342,110700.0,110690.0,0.21673479]
[1762068705600,0.56469342,110700.0,110690.0,0.24127479]
[1762068705830,0.56469342,110700.0,110690.0,0.06059]
[1762068706765,0.58748342,110700.0,110690.0,0.008]
[1762068715988,0.78748342,110700.0,110690.0,0.008]
[1762068716396,3.78748342,110700.0,110690.0,0.008]
[1762068717019,3.78748342,110700.0,110690.0,0.003]
[1762068717190,0.52068479,110690.0,110680.0,0.14105348]
[1762068717393,0.56991479,110690.0,110680.0,0.14105348]
[1762068717916,0.59707621,110690.0,110680.0,0.14105348]
[1762068718309,0.59707621,110690.0,110680.0,0.14205348]
[1762068718674,0.59707621,110690.0,110680.0,0.14305348]
[1762068728144,0.55867621,110690.0,110680.0,0.28648938]
[1762068728353,0.57526621,110690.0,110680.0,0.26162938]
[1762068728559,0.59857621,110690.0,110680.0,0.14305348]
[1762068731457,0.57141479,110690.0,110680.0,0.14305348]
[1762068742085,0.59089319,110690.0,110680.0,0.14305348]
[1762068757567,0.87488823,110690.0,110680.0,0.14305348]
[1762068757783,3.86287419,110690.0,110680.0,0.14305348]
[1762068757997,3.89004095,110690.0,110680.0,0.14305348]
[1762068758412,3.89104095,110690.0,110680.0,0.14305348]
[1762068758648,3.89004095,110690.0,110680.0,0.14105348]
[1762068758890,3.89704095,110690.0,110680.0,0.14105348]
[1762068759300,3.89804095,110690.0,110680.0,0.14105348]
[1762068759558,3.89704095,110690.0,110680.0,0.14105348]
[1762068759775,3.89804095,110690.0,110680.0,0.14105348]
[1762068759994,3.8942227,110690.0,110680.0,0.14105348]
[1762068761323,3.89804101,110690.0,110680.0,0.14105348]
[1762068762293,3.89804107,110690.0,110680.0,0.14105348]
[1762068762510,3.8650606,110690.0,110680.0,0.14105348]
[1762068762901,3.86124223,110690.0,110680.0,0.14105348]
[1762068763308,3.86506003,110690.0,110680.0,0.14105348]
[1762068764315,3.86124223,110690.0,110680.0,0.14105348]
[1762068766735,3.86506167,110690.0,110680.0,0.14105348]
[1762068768161,3.889415,110690.0,110680.0,0.14105348]
[1762068771578,3.90358904,110690.0,110680.0,0.14105348]
[1762068777203,3.87642228,110690.0,110680.0,0.14105348]
[1762068790703,3.96624129,110690.0,110680.0,0.14105348]
[1762068790903,4.03077705,110690.0,110680.0,0.14105348]
[1762068791089,3.99822176,110690.0,110680.0,0.14105348]
[1762068791517,3.90840275,110690.0,110680.0,0.14105348]
[1762068792169,3.90940275,110690.0,110680.0,0.14105348]
[1762068792567,3.94195804,110690.0,110680.0,0.14105348]
[1762068792785,3.94095804,110690.0,110680.0,0.14105348]
[1762068793015,3.94195804,110690.0,110680.0,0.14105348]
[1762068793182,4.03077705,110690.0,110680.0,0.14105348]
[1762068794171,3.94095804,110690.0,110680.0,0.14105348]
[1762068795307,3.90840275,110690.0,110680.0,0.14105348]
[1762068795900,3.87642228,110690.0,110680.0,0.14105348]
[1762068802421,1.08542228,110690.0,110680.0,0.14105348]
[1762068802616,0.88542228,110690.0,110680.0,0.14105348]
[1762068803760,0.88342228,110690.0,110680.0,0.14105348]
[1762068804251,0.87842228,110690.0,110680.0,0.14105348]
[1762068804465,0.88043927,110690.0,110680.0,0.14105348]
[1762068806831,0.88025496,110690.0,110680.0,0.14105348]
[1762068813229,0.85589456,110690.0,110680.0,0.14105348]
[1762068823191,0.88025496,110690.0,110680.0,0.14105348]
[1762068826971,0.88025401,110690.0,110680.0,0.14105348]
[1762068834395,0.87125401,110690.0,110680.0,0.14105348]
[1762068840050,0.88025401,110690.0,110680.0,0.14105348]
[1762068840692,0.88025401,110690.0,110680.0,0.16086433]
[1762068841931,0.88025401,110690.0,110680.0,0.14105348]
[1762068848330,0.85589361,110690.0,110680.0,0.14105348]
[1762068851862,1.08306037,110690.0,110680.0,0.14105348]
[1762068852115,4.10742077,110690.0,110680.0,0.14105348]
[1762068852294,4.09842077,110690.0,110680.0,0.14105348]
[1762068852656,4.08645013,110690.0,110680.0,0.14105348]
[1762068857249,4.09545013,110690.0,110680.0,0.14105348]
[1762068859379,4.1274306,110690.0,110680.0,0.14105348]
[1762068863579,4.1284306,110690.0,110680.0,0.14105348]
[1762068863788,4.1274306,110690.0,110680.0,0.14105348]
[1762068866269,4.1184306,110690.0,110680.0,0.14105348]
[1762068868670,4.22197233,110690.0,110680.0,0.14105348]
[1762068868888,4.20779829,110690.0,110680.0,0.14105348]
[1762068869348,4.14681185,110690.0,110680.0,0.14105348]
[1762068869822,4.14481185,110690.0,110680.0,0.14105348]
[1762068870051,4.14459014,110690.0,110680.0,0.14105348]
[1762068870862,4.12322974,110690.0,110680.0,0.14105348]
[1762068871086,4.13022974,110690.0,110680.0,0.14105348]
[1762068871508,4.15455397,110690.0,110680.0,0.14105348]
[1762068872173,4.16872877,110690.0,110680.0,0.14105348]
[1762068877574,4.15972877,110690.0,110680.0,0.14105348]
[1762068880794,4.15872877,110690.0,110680.0,0.14105348]
[1762068881539,4.15172877,110690.0,110680.0,0.14105348]
[1762068882045,4.15572877,110690.0,110680.0,0.14105348]
[1762068882287,4.12317348,110690.0,110680.0,0.14105348]
[1762068882443,4.07701821,110690.0,110680.0,0.14105348]
[1762068882652,4.08301821,110690.0,110680.0,0.15814765]
[1762068883038,4.08501821,110690.0,110680.0,0.15814765]
[1762068883614,4.08101821,110690.0,110680.0,0.15814765]
[1762068883812,4.08201821,110690.0,110680.0,0.15814765]
[1762068884017,4.08001821,110690.0,110680.0,0.15814765]
[1762068884545,0.88001821,110690.0,110680.0,0.15814765]
[1762068885359,0.85569398,110690.0,110680.0,0.15814765]
[1762068885800,0.86986782,110690.0,110680.0,0.15814765]
[1762068888665,0.84270106,110690.0,110680.0,0.17360765]
[1762068888892,0.81939106,110690.0,110680.0,0.17360765]
[1762068889098,0.81936456,110690.0,110680.0,0.17360765]
[1762068889606,0.81595209,110690.0,110680.0,0.17360765]
[1762068889809,0.81911001,110690.0,110680.0,0.17360765]
[1762068890580,0.81595209,110690.0,110680.0,0.17360765]
[1762068890724,0.84001209,110690.0,110680.0,0.17360765]
[1762068892071,0.84001209,110690.0,110680.0,0.14105348]
[1762068892266,0.83101209,110690.0,110680.0,0.14105348]
[1762068895993,0.81683825,110690.0,110680.0,0.14105348]